fUSD/lending_fUSD_20241222
["ID","MTS","AMOUNT","RATE_DAILY","PERIOD"]
[346293194,1734876645328,-500.0,0.00019452,2]
[346293195,1734876645337,-575.98,0.00019452,2]
[346293196,1734876645347,-500.0,0.00019452,2]
[346293197,1734876645356,-1321.7,0.00019452,2]
[346293198,1734876645366,-500.0,0.00019452,2]
[346293199,1734876645376,-3648.98,0.00019452,2]
[346293200,1734876645386,-500.0,0.00019452,2]
[346293202,1734876645396,-848.72,0.00019452,2]
[346293204,1734876645406,-500.0,0.00019452,2]
[346293205,1734876645416,-63739.53,0.00019452,2]
[346293206,1734876645426,-500.0,0.00019452,2]
[346293207,1734876645436,-500.29,0.00019452,2]
[346293208,1734876645445,-500.0,0.00019452,2]
[346293209,1734876645455,-500.0,0.00019452,2]
[346293210,1734876645465,-500.0,0.00019452,2]
[346293211,1734876645475,-500.0,0.00019452,2]
[346293212,1734876645484,-500.0,0.00019452,2]
[346293213,1734876645495,-500.0,0.00019452,2]
[346293214,1734876645504,-500.0,0.00019452,2]
[346293215,1734876645514,-7201.5,0.00019452,2]
[346293216,1734876645523,-4615.68,0.00019452,2]
[346293217,1734876645534,-749.8,0.00019452,2]
[346293218,1734876645544,-500.0,0.00019452,2]
[346293219,1734876645553,-10806.43,0.00019452,2]
[346293220,1734876645563,-574.60509526,0.00019452,2]
[346293221,1734876645573,-500.0,0.00019452,2]
[346293222,1734876645582,-1660.9,0.00019452,2]
[346293223,1734876645591,-701.73,0.00019452,2]
[346293224,1734876645601,-500.0,0.00019452,2]
[346293225,1734876645610,-795.97,0.00019452,2]
[346293226,1734876645620,-604.74,0.00019452,2]
[346293227,1734876645630,-500.0,0.00019452,2]
[346293228,1734876645639,-500.0,0.00019452,2]
[346293229,1734876645649,-500.0,0.00019452,2]
[346293230,1734876645658,-500.0,0.00019452,2]
[346293231,1734876645668,-500.0,0.00019452,2]
[346293232,1734876645678,-1028.02,0.00019452,2]
[346293233,1734876645688,-17663.78,0.00019452,2]
[346293234,1734876645698,-1563.27,0.00019452,2]
[346293235,1734876645710,-500.0,0.00019452,2]
[346293236,1734876645719,-845.89,0.00019452,2]
[346293237,1734876645729,-500.0,0.00019452,2]
[346293238,1734876645739,-500.0,0.00019452,2]
[346293239,1734876645748,-3721.96,0.00019452,2]
[346293240,1734876645758,-916.19,0.00019452,2]
[346293241,1734876645768,-7886.29,0.00019452,2]
[346293242,1734876645778,-25843.01,0.00019452,2]
[346293243,1734876645788,-11080.58,0.00019452,2]
[346293244,1734876645799,-7545.21,0.00019452,2]
[346293245,1734876645808,-1404.71,0.00019452,2]
[346293246,1734876645818,-500.0,0.00019452,2]
[346293247,1734876645828,-500.0,0.00019452,2]
[346293248,1734876645838,-709.93,0.00019452,2]
[346293249,1734876645847,-29785.11,0.00019452,2]
[346293250,1734876645857,-500.0,0.00019452,2]
[346293251,1734876645867,-500.0,0.00019452,2]
[346293252,1734876645876,-1033.67,0.00019452,2]
[346293253,1734876645886,-500.0,0.00019452,2]
[346293254,1734876645895,-500.0,0.00019452,2]
[346293255,1734876645905,-6106.3,0.00019452,2]
[346293256,1734876645917,-905.31,0.00019452,2]
[346293257,1734876645933,-500.0,0.00019452,2]
[346293258,1734876645946,-3437.95,0.00019452,2]
[346293259,1734876645955,-500.0,0.00019452,2]
[346293260,1734876645965,-731.41,0.00019452,2]
[346293261,1734876645975,-10203.59,0.00019452,2]
[346293262,1734876645984,-3675.3,0.00019452,2]
[346293263,1734876645993,-500.0,0.00019452,2]
[346293264,1734876646003,-500.0,0.00019452,2]
[346293265,1734876646012,-1001.63,0.00019452,2]
[346293266,1734876646021,-500.0,0.00019452,2]
[346293268,1734876646074,-1773.23,0.00019452,2]
[346293269,1734876646084,-1107.21,0.00019452,2]
[346293270,1734876646094,-733.46,0.00019452,2]
[346293271,1734876646104,-500.0,0.00019452,2]
[346293272,1734876646114,-500.0,0.00019452,2]
[346293273,1734876646124,-890.23,0.00019452,2]
[346293274,1734876646133,-2562.16,0.00019452,2]
[346293275,1734876646142,-2132.77,0.00019452,2]
[346293276,1734876646151,-2602.26,0.00019452,2]
[346293277,1734876646161,-179.58414036,0.00019452,2]
[346293278,1734876646171,-1216.42,0.00019452,2]
[346293279,1734876646180,-500.0,0.00019452,2]
[346293280,1734876646192,-8555.93,0.00019452,2]
[346293281,1734876646201,-500.0,0.00019452,2]
[346293282,1734876646214,-27049.87,0.00019452,2]
[346293283,1734876646223,-12750.72,0.00019452,2]
[346293284,1734876646233,-500.0,0.00019452,2]
[346293285,1734876646242,-500.0,0.00019452,2]
[346293286,1734876646254,-1400.98,0.00019452,2]
[346293287,1734876646264,-423.57245123,0.00019452,2]
[346293288,1734876646273,-500.0,0.00019452,2]
[346293289,1734876646282,-1885.95,0.00019452,2]
[346293290,1734876646291,-500.0,0.00019452,2]
[346293291,1734876646300,-500.0,0.00019452,2]
[346293292,1734876646309,-705.89,0.00019452,2]
[346293293,1734876646319,-500.0,0.00019452,2]
[346293294,1734876646329,-1784.44,0.00019452,2]
[346293295,1734876646338,-8604.31,0.00019452,2]
[346293296,1734876646347,-6819.32,0.00019452,2]
[346293297,1734876646356,-500.0,0.00019452,2]
[346293298,1734876646366,-500.0,0.00019452,2]
[346293299,1734876646376,-177.36479156,0.00019452,2]
[346293300,1734876646386,-500.0,0.00019452,2]
[346293301,1734876646395,-500.0,0.00019452,2]
[346293302,1734876646405,-500.0,0.00019452,2]
[346293303,1734876646415,-2094.53,0.00019452,2]
[346293304,1734876646424,-500.0,0.00019452,2]
[346293305,1734876646434,-500.0,0.00019452,2]
[346293306,1734876646445,-905.64,0.00019452,2]
[346293307,1734876646455,-500.0,0.00019452,2]
[346293308,1734876646465,-500.0,0.00019452,2]
[346293309,1734876646474,-3646.96,0.00019452,2]
[346293310,1734876646484,-500.0,0.00019452,2]
[346293311,1734876646494,-552.93,0.00019452,2]
[346293312,1734876646504,-500.0,0.00019452,2]
[346293313,1734876646513,-500.0,0.00019452,2]
[346293314,1734876646523,-500.0,0.00019452,2]
[346293315,1734876646533,-500.0,0.00019452,2]
[346293316,1734876646542,-3000.0,0.00019452,2]
[346293317,1734876646552,-500.0,0.00019452,2]
[346293318,1734876646562,-500.0,0.00019452,2]
[346293319,1734876646571,-500.0,0.00019452,2]
[346293320,1734876646581,-659.27,0.00019452,2]
[346293321,1734876646590,-500.0,0.00019452,2]
[346293322,1734876646599,-500.0,0.00019452,2]
[346293323,1734876646608,-34391.23,0.00019452,2]
[346293324,1734876646617,-4355.77,0.00019452,2]
[346293325,1734876646626,-402.19863602,0.00019452,2]
[346293326,1734876646636,-19708.68994805,0.00019456,2]
[346293327,1734876646645,-17265.33898919,0.00019456,2]
[346293328,1734876646655,-19708.68994805,0.0001947,2]
[346293329,1734876646665,-17265.33898919,0.00019482,2]
[346293330,1734876646674,-17265.33898919,0.00019483,2]
[346293331,1734876646683,-19708.68994805,0.00019492,2]
[346293332,1734876646695,-19708.68994805,0.00019494,2]
[346293333,1734876646706,-765.15325527,0.000195,2]
[346293334,1734876646716,-8080.64617898,0.00019535,2]
[346293335,1734876646726,-303.93098784,0.00019535,2]
[346293336,1734876646735,-150.0,0.00019536,2]
[346293337,1734876646744,-156.85106071,0.00019562,2]
[346293338,1734876646754,-1044.95022051,0.000196,2]
[346293339,1734876646764,-1136.51640879,0.000196,2]
[346293340,1734876646773,-1000.0,0.000196,2]
[346293341,1734876646782,-185.16739718,0.00019625,2]
[346293342,1734876646792,-164.00310756,0.00019625,2]
[346293343,1734876646802,-500.0,0.00019625,2]
[346293344,1734876646811,-2060.34,0.00019625,2]
[346293345,1734876646821,-500.0,0.00019625,2]
[346293346,1734876646830,-500.0,0.00019625,2]
[346293347,1734876646839,-705.13,0.00019625,2]
[346293348,1734876646848,-8080.64617898,0.00019626,2]
[346293349,1734876646858,-303.93098784,0.00019626,2]
[346293350,1734876646867,-150.0,0.00019667,4]
[346293351,1734876646877,-150.0,0.00019673,2]
[346293352,1734876646886,-3000.0,0.000197,2]
[346293353,1734876646896,-250.0,0.000197,2]
[346293354,1734876646906,-8080.64617898,0.00019717,2]
[346293355,1734876646915,-303.93098784,0.00019717,2]
[346293356,1734876646925,-18251.65,0.00019724,2]
[346293357,1734876646934,-500.0,0.00019725,2]
[346293358,1734876646948,-1930.56,0.00019725,2]
[346293359,1734876646960,-2442.47,0.00019725,2]
[346293360,1734876646970,-948.8,0.00019725,2]
[346293361,1734876646979,-7140.63,0.00019725,2]
[346293362,1734876646989,-1404.36,0.00019725,2]
[346293363,1734876646998,-500.0,0.00019725,2]
[346293364,1734876647007,-1000.0,0.00019725,2]
[346293365,1734876647016,-831.8,0.00019725,2]
[346293366,1734876647026,-500.0,0.00019725,2]
[346293367,1734876647035,-1398.28,0.00019725,2]
[346293368,1734876647044,-3603.83,0.00019725,2]
[346293369,1734876647054,-18251.65,0.00019725,2]
[346293370,1734876647063,-520754.83059323,0.00019726,3]
[346293371,1734876647362,-475.22042769,0.00019726,3]
[346293372,1734876647379,-13173.59999958,0.00019726,3]
[346293373,1734876647392,-54519.68267483,0.00019726,3]
[346293374,1734876647403,-15147.81065621,0.00019726,3]
[346293375,1734876647448,-2862.75,0.00019726,3]
[346293376,1734876647460,-3090.44816829,0.00019726,3]
[346293377,1734876647472,-1480.61808274,0.00019726,3]
[346293378,1734876647795,-500.0,0.00019178,2]
[346293379,1734876647805,-500.0,0.00019452,2]
[346293380,1734876647815,-1048.00218,0.00019726,3]
[346293381,1734876647842,-5054.53349619,0.00019726,3]
[346293382,1734876647854,-5621.53118702,0.00019726,3]
[346293383,1734876647877,-485.16721508,0.00019726,3]
[346293384,1734876647889,-1760.959996,0.00019726,3]
[346293385,1734876647900,-5276.91538586,0.00019726,3]
[346293386,1734876647911,-449.23479685,0.00019726,3]
[346293387,1734876648175,-4785.83642843,0.00019726,3]
[346293388,1734876648187,-7552.66,0.00019726,3]
[346293389,1734876648209,-4914.85229797,0.00019726,3]
[346293390,1734876648233,-743.87515383,0.00016472,2]
[346293391,1734876648243,-79.49984617,0.00019726,3]
[346293392,1734876648255,-13743.87584513,0.00019726,3]
[346293393,1734876648267,-194659.07491586,0.00019726,3]
[346293394,1734876648278,-331.40844841,0.00019726,3]
[346293395,1734876648691,-340.74657615,0.00019178,2]
[346293396,1734876648744,-159.25342385,0.00019178,2]
[346293397,1734876648754,-500.0,0.00019178,2]
[346293398,1734876648764,-24.41157615,0.00019178,2]
[346293399,1734876648777,-475.58842385,0.00019178,2]
[346293400,1734876648787,-500.0,0.00019178,2]
[346293401,1734876648797,-500.0,0.00019452,2]
[346293402,1734876648807,-4507.0760223,0.00019726,3]
[346293403,1734876648823,-263.86867618,0.00019726,3]
[346293404,1734876648835,-562.31803928,0.00019726,3]
[346293405,1734876649485,-75191.4264904,0.00019726,3]
[346293406,1734876649495,-5228.36969102,0.00019726,3]
[346293407,1734876649504,-221.65636441,0.00019726,2]
[346293408,1734876649514,-500.0,0.00019726,2]
[346293409,1734876649523,-500.0,0.00019726,2]
[346293410,1734876649532,-523.07,0.00019726,2]
[346293411,1734876649541,-500.0,0.00019726,2]
[346293412,1734876649551,-503.8,0.00019726,2]
[346293413,1734876649561,-500.0,0.00019726,2]
[346293414,1734876649570,-337.02945705,0.00019726,2]
[346293415,1734876649580,-500.0,0.00019726,2]
[346293416,1734876649590,-500.0,0.00019726,2]
[346293417,1734876649600,-500.0,0.00019726,2]
[346293418,1734876649609,-500.0,0.00019726,2]
[346293419,1734876649619,-500.0,0.00019726,2]
[346293420,1734876649629,-500.0,0.00019726,2]
[346293421,1734876649638,-500.0,0.00019726,2]
[346293422,1734876649648,-500.0,0.00019726,2]
[346293423,1734876649657,-500.0,0.00019726,2]
[346293424,1734876649667,-500.0,0.00019726,2]
[346293425,1734876649677,-479.113621,0.00019726,2]
[346293426,1734876649689,-500.0,0.00019726,2]
[346293427,1734876649701,-4271.830241,0.00019726,2]
[346293428,1734876649712,-500.0,0.00019726,2]
[346293429,1734876649721,-500.0,0.00019726,2]
[346293430,1734876649731,-500.0,0.00019726,2]
[346293431,1734876649741,-500.0,0.00019726,2]
[346293432,1734876649751,-500.0,0.00019726,2]
[346293433,1734876649760,-305.65802154,0.00019726,2]
[346293434,1734876649770,-500.0,0.00019726,2]
[346293435,1734876649781,-520.34,0.00019726,2]
[346293436,1734876649790,-500.0,0.00019726,2]
[346293437,1734876649799,-500.0,0.00019726,2]
[346293438,1734876649809,-500.0,0.00019726,2]
[346293439,1734876649819,-500.0,0.00019726,2]
[346293440,1734876649829,-500.0,0.00019726,2]
[346293441,1734876649838,-507.38006002,0.00019726,2]
[346293442,1734876649847,-500.0,0.00019726,2]
[346293443,1734876649857,-608.14,0.00019726,2]
[346293444,1734876649867,-500.0,0.00019726,2]
[346293445,1734876649876,-577.17,0.00019726,2]
[346293446,1734876649885,-500.0,0.00019726,2]
[346293447,1734876649894,-500.0,0.00019726,2]
[346293448,1734876649904,-500.0,0.00019726,2]
[346293449,1734876649913,-500.0,0.00019726,2]
[346293450,1734876649924,-500.0,0.00019726,2]
[346293451,1734876649933,-500.0,0.00019726,2]
[346293452,1734876649945,-500.0,0.00019726,2]
[346293453,1734876649955,-500.0,0.00019726,2]
[346293454,1734876649966,-1108.28,0.00019726,2]
[346293455,1734876649976,-500.0,0.00019726,2]
[346293456,1734876649985,-500.0,0.00019726,2]
[346293457,1734876649995,-202.52,0.00019726,2]
[346293458,1734876650005,-500.0,0.00019726,2]
[346293459,1734876650014,-500.0,0.00019726,2]
[346293460,1734876650024,-500.0,0.00019726,2]
[346293461,1734876650034,-500.0,0.00019726,2]
[346293462,1734876650043,-500.0,0.00019726,2]
[346293463,1734876650053,-500.0,0.00019726,2]
[346293464,1734876650062,-228.42,0.00019726,2]
[346293465,1734876650072,-500.0,0.00019726,2]
[346293466,1734876650081,-500.0,0.00019726,2]
[346293467,1734876650090,-500.0,0.00019726,2]
[346293468,1734876650100,-500.0,0.00019726,2]
[346293469,1734876650110,-185.52,0.00019726,2]
[346293470,1734876650119,-500.0,0.00019726,2]
[346293471,1734876650128,-1157.15,0.00019726,2]
[346293472,1734876650138,-693.26,0.00019726,2]
[346293473,1734876650147,-500.0,0.00019726,2]
[346293474,1734876650156,-500.0,0.00019726,2]
[346293475,1734876650165,-500.0,0.00019726,2]
[346293476,1734876650175,-500.0,0.00019726,2]
[346293477,1734876650184,-500.0,0.00019726,2]
[346293478,1734876650195,-359.04546174,0.00019726,2]
[346293479,1734876650209,-500.0,0.00019726,2]
[346293480,1734876650218,-500.0,0.00019726,2]
[346293481,1734876650227,-537.17,0.00019726,2]
[346293482,1734876650236,-500.0,0.00019726,2]
[346293483,1734876650246,-500.0,0.00019726,2]
[346293484,1734876650255,-500.0,0.00019726,2]
[346293485,1734876650265,-500.0,0.00019726,2]
[346293486,1734876650274,-526.13035643,0.00019726,2]
[346293487,1734876650284,-500.0,0.00019726,2]
[346293488,1734876650293,-500.0,0.00019726,2]
[346293489,1734876650302,-500.0,0.00019726,2]
[346293490,1734876650312,-1121.32,0.00019726,2]
[346293491,1734876650320,-665.75,0.00019726,2]
[346293492,1734876650329,-500.0,0.00019726,2]
[346293493,1734876650338,-500.0,0.00019726,2]
[346293494,1734876650348,-500.0,0.00019726,2]
[346293495,1734876650357,-500.0,0.00019726,2]
[346293496,1734876650367,-644.76,0.00019726,2]
[346293497,1734876650376,-220.31532024,0.00019726,2]
[346293498,1734876650386,-500.0,0.00019726,2]
[346293499,1734876650397,-531.4,0.00019726,2]
[346293500,1734876650407,-500.0,0.00019726,2]
[346293501,1734876650417,-500.0,0.00019726,2]
[346293502,1734876650426,-500.0,0.00019726,2]
[346293503,1734876650436,-500.0,0.00019726,2]
[346293504,1734876650447,-500.0,0.00019726,2]
[346293505,1734876650456,-641.28,0.00019726,2]
[346293506,1734876650466,-286.588,0.00019726,2]
[346293507,1734876650481,-505.81,0.00019726,2]
[346293508,1734876650490,-500.0,0.00019726,2]
[346293509,1734876650500,-500.0,0.00019726,2]
[346293510,1734876650509,-500.0,0.00019726,2]
[346293511,1734876650518,-369.03708655,0.00019726,2]
[346293512,1734876650527,-500.0,0.00019726,2]
[346293513,1734876650537,-500.0,0.00019726,2]
[346293514,1734876650546,-500.0,0.00019726,2]
[346293515,1734876650555,-422.13349838,0.00019726,2]
[346293516,1734876650565,-500.0,0.00019726,2]
[346293517,1734876650574,-487.86832324,0.00019726,2]
[346293518,1734876650583,-500.0,0.00019726,2]
[346293519,1734876650593,-500.0,0.00019726,2]
[346293520,1734876650602,-500.0,0.00019726,2]
[346293521,1734876650611,-500.0,0.00019726,2]
[346293522,1734876650620,-500.0,0.00019726,2]
[346293523,1734876650629,-334.5,0.00019726,2]
[346293524,1734876650638,-150.0,0.00019726,2]
[346293525,1734876650647,-500.0,0.00019726,2]
[346293526,1734876650656,-500.0,0.00019726,2]
[346293527,1734876650665,-500.0,0.00019726,2]
[346293528,1734876650674,-500.0,0.00019726,2]
[346293529,1734876650683,-748.22,0.00019726,2]
[346293530,1734876650693,-176.21,0.00019726,2]
[346293531,1734876650702,-500.0,0.00019726,2]
[346293532,1734876650712,-500.0,0.00019726,2]
[346293533,1734876650721,-500.0,0.00019726,2]
[346293534,1734876650731,-7228.49,0.00019726,2]
[346293535,1734876650740,-500.0,0.00019726,2]
[346293536,1734876650750,-500.0,0.00019726,2]
[346293537,1734876650759,-500.0,0.00019726,2]
[346293538,1734876650768,-500.0,0.00019726,2]
[346293539,1734876650778,-315.72,0.00019726,2]
[346293540,1734876650788,-500.0,0.00019726,2]
[346293541,1734876650797,-500.0,0.00019726,2]
[346293542,1734876650807,-500.0,0.00019726,2]
[346293543,1734876650816,-500.0,0.00019726,2]
[346293544,1734876650825,-500.0,0.00019726,2]
[346293545,1734876650834,-500.0,0.00019726,2]
[346293546,1734876650843,-189.91361693,0.00019726,2]
[346293547,1734876650853,-500.0,0.00019726,2]
[346293548,1734876650862,-500.0,0.00019726,2]
[346293549,1734876650871,-500.0,0.00019726,2]
[346293550,1734876650881,-500.0,0.00019726,2]
[346293551,1734876650890,-500.0,0.00019726,2]
[346293552,1734876650899,-500.0,0.00019726,2]
[346293553,1734876650909,-500.0,0.00019726,2]
[346293554,1734876650918,-724.49,0.00019726,2]
[346293555,1734876650928,-205.33956672,0.00019726,2]
[346293556,1734876650937,-500.0,0.00019726,2]
[346293557,1734876650948,-500.0,0.00019726,2]
[346293558,1734876650957,-1237.88,0.00019726,2]
[346293559,1734876650967,-500.0,0.00019726,2]
[346293560,1734876650975,-500.0,0.00019726,2]
[346293561,1734876650985,-500.0,0.00019726,2]
[346293562,1734876650994,-672.27,0.00019726,2]
[346293563,1734876651004,-500.0,0.00019726,2]
[346293564,1734876651013,-500.0,0.00019726,2]
[346293565,1734876651022,-500.0,0.00019726,2]
[346293566,1734876651032,-500.0,0.00019726,2]
[346293567,1734876651041,-1037.75,0.00019726,2]
[346293568,1734876651050,-1172.28,0.00019726,2]
[346293569,1734876651059,-711.38,0.00019726,2]
[346293570,1734876651069,-500.0,0.00019726,2]
[346293571,1734876651078,-735.05,0.00019726,2]
[346293572,1734876651088,-500.0,0.00019726,2]
[346293573,1734876651097,-500.0,0.00019726,2]
[346293574,1734876651106,-500.0,0.00019726,2]
[346293575,1734876651115,-557.52,0.00019726,2]
[346293576,1734876651125,-500.0,0.00019726,2]
[346293577,1734876651134,-500.0,0.00019726,2]
[346293578,1734876651143,-2185.05,0.00019726,2]
[346293579,1734876651153,-500.0,0.00019726,2]
[346293580,1734876651162,-12022.48,0.00019726,2]
[346293581,1734876651171,-168.13,0.00019726,2]
[346293582,1734876651181,-220.43513225,0.00019726,2]
[346293583,1734876651190,-3073.43,0.00019726,2]
[346293584,1734876651201,-1838.29,0.00019726,2]
[346293585,1734876651213,-500.0,0.00019726,2]
[346293586,1734876651222,-500.0,0.00019726,2]
[346293587,1734876651231,-500.0,0.00019726,2]
[346293588,1734876651240,-500.0,0.00019726,2]
[346293589,1734876651251,-520.046889,0.00019726,2]
[346293590,1734876651261,-500.0,0.00019726,2]
[346293591,1734876651270,-541.03,0.00019726,2]
[346293592,1734876651279,-1010.15,0.00019726,2]
[346293593,1734876651289,-500.0,0.00019726,2]
[346293594,1734876651299,-595.04,0.00019726,2]
[346293595,1734876651308,-500.0,0.00019726,2]
[346293596,1734876651317,-500.0,0.00019726,2]
[346293597,1734876651327,-1076.24,0.00019726,2]
[346293598,1734876651336,-500.0,0.00019726,2]
[346293599,1734876651345,-500.0,0.00019726,2]
[346293600,1734876651355,-2554.03,0.00019726,2]
[346293601,1734876651364,-726.07,0.00019726,2]
[346293602,1734876651374,-500.0,0.00019726,2]
[346293603,1734876651383,-500.0,0.00019726,2]
[346293604,1734876651392,-500.0,0.00019726,2]
[346293605,1734876651402,-7756.96,0.00019726,2]
[346293606,1734876651412,-695.41,0.00019726,2]
[346293607,1734876651421,-624.43205003,0.00019726,2]
[346293608,1734876651431,-837.19,0.00019726,2]
[346293609,1734876651443,-735.17,0.00019726,2]
[346293610,1734876651452,-725.02,0.00019726,2]
[346293611,1734876651461,-922.95,0.00019726,2]
[346293612,1734876651471,-671.86,0.00019726,2]
[346293613,1734876651481,-771.2,0.00019726,2]
[346293614,1734876651491,-37634.07,0.00019726,2]
[346293615,1734876651501,-500.0,0.00019726,2]
[346293616,1734876651510,-914.58,0.00019726,2]
[346293617,1734876651520,-151.62,0.00019726,2]
[346293618,1734876651529,-575.98,0.00019726,2]
[346293619,1734876651539,-500.0,0.00019726,2]
[346293620,1734876651548,-1321.7,0.00019726,2]
[346293621,1734876651558,-500.0,0.00019726,2]
[346293622,1734876651567,-3648.98,0.00019726,2]
[346293623,1734876651577,-634.04,0.00019726,2]
[346293624,1734876651586,-848.72,0.00019726,2]
[346293625,1734876651596,-500.0,0.00019726,2]
[346293626,1734876651605,-63739.53,0.00019726,2]
[346293627,1734876651615,-500.0,0.00019726,2]
[346293628,1734876651625,-500.29,0.00019726,2]
[346293629,1734876651634,-500.0,0.00019726,2]
[346293630,1734876651644,-500.0,0.00019726,2]
[346293631,1734876651653,-500.0,0.00019726,2]
[346293632,1734876651662,-500.0,0.00019726,2]
[346293633,1734876651671,-500.0,0.00019726,2]
[346293634,1734876651681,-500.0,0.00019726,2]
[346293635,1734876651692,-7201.5,0.00019726,2]
[346293636,1734876651701,-4615.68,0.00019726,2]
[346293637,1734876651711,-749.8,0.00019726,2]
[346293638,1734876651720,-500.0,0.00019726,2]
[346293639,1734876651730,-10806.43,0.00019726,2]
[346293640,1734876651739,-500.0,0.00019726,2]
[346293641,1734876651748,-1660.9,0.00019726,2]
[346293642,1734876651758,-701.73,0.00019726,2]
[346293643,1734876651767,-500.0,0.00019726,2]
[346293644,1734876651776,-795.97,0.00019726,2]
[346293645,1734876651786,-604.74,0.00019726,2]
[346293646,1734876651795,-507.52577324,0.00019726,2]
[346293647,1734876651805,-500.0,0.00019726,2]
[346293648,1734876651814,-500.24484322,0.00019726,2]
[346293649,1734876651824,-500.0,0.00019726,2]
[346293650,1734876651833,-1028.02,0.00019726,2]
[346293651,1734876651842,-17663.78,0.00019726,2]
[346293652,1734876651851,-1563.27,0.00019726,2]
[346293653,1734876651860,-500.0,0.00019726,2]
[346293654,1734876651869,-845.89,0.00019726,2]
[346293655,1734876651879,-500.0,0.00019726,2]
[346293656,1734876651888,-500.0,0.00019726,2]
[346293657,1734876651897,-3721.96,0.00019726,2]
[346293658,1734876651906,-916.19,0.00019726,2]
[346293659,1734876651916,-7886.29,0.00019726,2]
[346293660,1734876651926,-25843.01,0.00019726,2]
[346293661,1734876651936,-11080.58,0.00019726,2]
[346293662,1734876651947,-7545.21,0.00019726,2]
[346293663,1734876651956,-1404.71,0.00019726,2]
[346293664,1734876651966,-500.0,0.00019726,2]
[346293665,1734876651975,-500.0,0.00019726,2]
[346293666,1734876651985,-709.93,0.00019726,2]
[346293667,1734876651994,-29785.11,0.00019726,2]
[346293668,1734876652003,-500.0,0.00019726,2]
[346293669,1734876652014,-500.0,0.00019726,2]
[346293670,1734876652023,-1033.67,0.00019726,2]
[346293671,1734876652032,-500.0,0.00019726,2]
[346293672,1734876652041,-500.0,0.00019726,2]
[346293673,1734876652050,-6106.3,0.00019726,2]
[346293674,1734876652060,-905.31,0.00019726,2]
[346293675,1734876652070,-500.0,0.00019726,2]
[346293676,1734876652080,-3437.95,0.00019726,2]
[346293677,1734876652089,-500.0,0.00019726,2]
[346293678,1734876652099,-731.41,0.00019726,2]
[346293679,1734876652109,-10203.59,0.00019726,2]
[346293680,1734876652119,-3675.3,0.00019726,2]
[346293681,1734876652128,-500.0,0.00019726,2]
[346293682,1734876652137,-500.0,0.00019726,2]
[346293683,1734876652147,-1001.63,0.00019726,2]
[346293684,1734876652156,-500.0,0.00019726,2]
[346293685,1734876652167,-1773.23,0.00019726,2]
[346293686,1734876652176,-1107.21,0.00019726,2]
[346293687,1734876652187,-733.46,0.00019726,2]
[346293688,1734876652197,-500.0,0.00019726,2]
[346293689,1734876652207,-500.0,0.00019726,2]
[346293690,1734876652219,-890.23,0.00019726,2]
[346293691,1734876652228,-2562.16,0.00019726,2]
[346293692,1734876652239,-2132.77,0.00019726,2]
[346293693,1734876652250,-2602.26,0.00019726,2]
[346293694,1734876652260,-1216.42,0.00019726,2]
[346293695,1734876652269,-508.66,0.00019726,2]
[346293696,1734876652278,-8555.93,0.00019726,2]